bitfinex/quotes_BTCUSD_20251202
["timestamp","ask_amount","ask_price","bid_price","bid_amount"]
[1764706951449,0.24070298,91363.0,91362.0,0.04931]
[1764706951828,0.02179599,91363.0,91361.0,0.0163244]
[1764706952033,0.02179599,91363.0,91362.0,0.06525]
[1764706952241,0.02179599,91363.0,91362.0,0.06625]
[1764706952442,0.02179599,91363.0,91362.0,0.06525]
[1764706952640,0.02179599,91363.0,91362.0,0.28315939]
[1764706952833,0.02179599,91363.0,91362.0,0.28415939]
[1764706953037,0.02179599,91363.0,91362.0,0.28315939]
[1764706953457,0.01094427,91372.0,91364.0,0.01094523]
[1764706953889,0.25201569,91371.0,91367.0,0.27915202]
[1764706954087,0.25201569,91371.0,91361.0,0.02826998]
[1764706954088,0.62622837,91362.0,91361.0,0.001]
[1764706954292,0.02179599,91324.0,91315.0,0.0109511]
[1764706954507,0.02179599,91324.0,91323.0,0.0163244]
[1764706955344,0.24079647,91324.0,91323.0,0.0163244]
[1764706955553,0.24079647,91324.0,91323.0,0.01644067]
[1764706955763,0.24079647,91324.0,91323.0,0.01944067]
[1764706956596,0.21900048,91324.0,91323.0,0.01944067]
[1764706957008,0.24079647,91324.0,91323.0,0.01944067]
[1764706959891,0.24079647,91324.0,91323.0,0.0145375]
[1764706960101,0.21900048,91324.0,91323.0,0.0145375]
[1764706960316,0.21900048,91324.0,91323.0,0.0773475]
[1764706960520,0.06252299,91329.0,91323.0,0.1674075]
[1764706960657,0.06252299,91334.0,91330.0,0.06281]
[1764706960859,0.22992813,91333.0,91331.0,0.06281]
[1764706961674,0.22992813,91333.0,91329.0,0.3673978]
[1764706961675,0.21896165,91341.0,91332.0,0.06281]
[1764706961903,0.2572823,91340.0,91338.0,0.0791344]
[1764706963070,0.2582823,91340.0,91338.0,0.0791344]
[1764706963276,0.23091204,91340.0,91338.0,0.0791344]
[1764706963478,0.001,91340.0,91338.0,0.0791344]
[1764706963679,0.21996329,91340.0,91338.0,0.0791344]
[1764706963887,0.001,91340.0,91338.0,0.29809996]
[1764706964039,0.02837026,91340.0,91338.0,0.0791344]
[1764706964202,0.02837026,91340.0,91338.0,0.29809953]
[1764706964674,0.02837026,91340.0,91339.0,0.11021]
[1764706964857,0.001,91340.0,91339.0,0.20027]
[1764706965271,0.001,91340.0,91339.0,0.11021]
[1764706965445,0.001,91340.0,91339.0,0.28268891]
[1764706965648,0.001,91340.0,91339.0,0.43555891]
[1764706965845,0.01094666,91352.0,91348.0,0.21894188]
[1764706966050,0.01094666,91352.0,91348.0,0.01756]
[1764706966051,0.21894054,91349.0,91348.0,0.01756]
[1764706967495,0.01094678,91351.0,91348.0,0.06281]
[1764706967702,0.21894054,91349.0,91348.0,0.06281]
[1764706967913,0.001,91349.0,91348.0,0.08037]
[1764706968130,0.22988326,91351.0,91348.0,0.08037]
[1764706968320,0.21893883,91350.0,91348.0,0.01756]
[1764706968784,0.21894054,91349.0,91348.0,0.01756]
[1764706968984,0.21893883,91350.0,91348.0,0.00953]
[1764706969204,0.001,91349.0,91348.0,0.00953]
[1764706969401,0.21893883,91350.0,91348.0,0.00953]
[1764706969834,0.21894054,91349.0,91348.0,0.00953]
[1764706971222,0.001,91349.0,91348.0,0.00953]
[1764706971425,0.001,91349.0,91348.0,0.29128294]
[1764706971747,0.001,91349.0,91348.0,0.07234]
[1764706971929,0.001,91349.0,91348.0,0.00953]
[1764706972129,0.001,91349.0,91348.0,0.02620144]
[1764706972331,0.001,91349.0,91348.0,0.29128294]
[1764706972559,0.001,91349.0,91348.0,0.38134294]
[1764706981071,0.001,91349.0,91348.0,0.78134294]
[1764706981724,0.02736157,91369.0,91368.0,0.21889501]
[1764706981952,0.01225,91390.0,91368.0,0.21889501]
[1764706981953,0.21886888,91379.0,91376.0,0.01094379]
[1764706982180,0.21886881,91379.0,91376.0,0.22981738]
[1764706982436,0.03287599,91386.0,91378.0,0.12115355]
[1764706982648,0.03287599,91386.0,91385.0,0.23517869]
[1764706982861,0.01094235,91388.0,91385.0,0.0791344]
[1764706983056,0.21923961,91386.0,91385.0,0.0791344]
[1764706983482,0.21923961,91386.0,91385.0,0.0163244]
[1764706985060,0.24659609,91386.0,91385.0,0.0163244]
[1764706985707,0.21923961,91386.0,91385.0,0.0163244]
[1764706985927,0.24412105,91386.0,91385.0,0.0163244]
[1764706986148,0.26591704,91386.0,91385.0,0.0163244]
[1764706986393,0.2410356,91386.0,91385.0,0.0163244]
[1764706988600,0.0221837,91386.0,91385.0,0.0163244]
[1764706988777,0.2410356,91386.0,91385.0,0.0163244]
[1764706989632,0.0221837,91386.0,91385.0,0.0163244]
[1764706989842,0.2410356,91386.0,91385.0,0.0163244]
[1764706990047,0.0221837,91386.0,91385.0,0.0163244]
[1764706990416,0.0221837,91386.0,91385.0,0.23517869]
[1764706990620,0.00038771,91386.0,91385.0,0.39106869]
[1764706990821,0.00038771,91386.0,91385.0,0.1722144]
[1764706991075,0.00038771,91386.0,91385.0,0.39106869]
[1764706991506,0.21923961,91386.0,91385.0,0.1722144]
[1764706991655,0.00038771,91386.0,91385.0,0.1722144]
[1764706992252,0.00038771,91386.0,91385.0,0.39106869]
[1764707002830,0.21923961,91386.0,91385.0,0.0338844]
[1764707003031,0.2410356,91386.0,91385.0,0.0338844]
[1764707003383,0.2410356,91386.0,91385.0,0.0163244]
[1764707003685,0.2410356,91386.0,91375.0,0.01094391]
[1764707003686,0.02179599,91378.0,91366.0,0.01094499]
[1764707003914,0.22981931,91377.0,91374.0,0.01756]
[1764707004114,0.00038771,91386.0,91383.0,0.21885677]
[1764707004424,0.21923961,91386.0,91385.0,0.0615344]
[1764707004635,0.2410356,91386.0,91385.0,0.0163244]
[1764707005391,0.21886684,91380.0,91376.0,0.01756]
[1764707005599,0.2188731,91378.0,91376.0,0.01756]
[1764707005794,0.21887345,91377.0,91376.0,0.01756]
[1764707005993,0.21888627,91372.0,91365.0,0.0474]
[1764707006204,0.21889115,91370.0,91368.0,0.0741844]
[1764707006429,0.01094415,91373.0,91370.0,0.01094451]
[1764707006630,0.01094415,91373.0,91370.0,0.22983239]
[1764707006801,0.03878,91379.0,91370.0,0.01094451]
[1764707007024,0.01094271,91385.0,91378.0,0.06319]
[1764707007225,0.28137728,91385.0,91384.0,0.0163244]
[1764707007401,0.21885908,91383.0,91373.0,0.21888105]
[1764707007611,0.02179599,91377.0,91376.0,0.21887574]
[1764707008224,0.02179599,91377.0,91375.0,0.22982191]
[1764707008563,0.02179599,91377.0,91376.0,0.06319]
[1764707008739,0.02179599,91377.0,91376.0,0.28206585]
[1764707009353,0.02179599,91377.0,91376.0,0.06319]
[1764707009759,0.02179599,91377.0,91376.0,0.28306585]
[1764707009960,0.02179599,91377.0,91376.0,0.28406585]
[1764707010164,0.02179599,91377.0,91376.0,0.002]
[1764707010584,0.24066944,91377.0,91376.0,0.002]
[1764707010791,0.35270243,91377.0,91376.0,0.002]
[1764707011208,0.67570243,91377.0,91376.0,0.002]
[1764707012398,0.01094427,91372.0,91363.0,0.01094534]
[1764707012632,0.06045367,91377.0,91357.0,0.04521]
[1764707012633,0.01094523,91364.0,91359.0,0.01094582]
[1764707012838,0.22985009,91364.0,91360.0,0.0109457]
[1764707013042,0.229848,91365.0,91361.0,0.21891139]
[1764707013232,0.21890742,91363.0,91360.0,0.0109457]
[1764707013445,0.21890742,91363.0,91357.0,0.05615606]
[1764707013446,0.01094546,91362.0,91357.0,0.05615606]
[1764707013641,0.21890699,91363.0,91360.0,0.21891381]
[1764707013876,0.01094546,91362.0,91357.0,0.05615606]
[1764707014091,0.01094558,91361.0,91358.0,0.01094594]
[1764707014289,0.22985468,91363.0,91359.0,0.22986218]
[1764707014489,0.01094558,91361.0,91358.0,0.01094594]
[1764707014693,0.08907299,91366.0,91362.0,0.22985399]
[1764707014926,0.08907299,91366.0,91358.0,0.01094594]
[1764707014927,0.01094523,91364.0,91358.0,0.01094594]
[1764707015108,0.21891177,91362.0,91358.0,0.22986273]
[1764707015352,0.22985816,91361.0,91357.0,0.2298651]
[1764707015525,0.22985988,91360.0,91357.0,0.21892085]
[1764707015785,0.0109457,91360.0,91357.0,0.22986691]
[1764707015905,0.01094523,91364.0,91359.0,0.01094582]
[1764707016103,0.21890711,91363.0,91359.0,0.22986232]
[1764707016526,0.01094546,91362.0,91357.0,0.01194606]
[1764707016933,0.03274169,91360.0,91357.0,0.001]
[1764707017138,0.30372795,91358.0,91357.0,0.001]
[1764707017544,0.35273795,91358.0,91357.0,0.001]
[1764707017781,0.21895013,91345.0,91338.0,0.04824]
[1764707018018,0.21895013,91345.0,91341.0,0.01094798]
[1764707018160,0.21895013,91345.0,91342.0,0.22990477]
[1764707018575,0.21895013,91345.0,91342.0,0.22990505]
[1764707018771,0.02179599,91346.0,91342.0,0.01094786]
[1764707018970,0.02179599,91346.0,91345.0,0.21895013]
[1764707019403,0.22988338,91351.0,91345.0,0.22989763]
[1764707019604,0.02179599,91346.0,91345.0,0.22989763]
[1764707019962,0.02179599,91346.0,91344.0,0.22361243]
[1764707020164,0.02179599,91345.0,91344.0,0.00266082]
[1764707020381,0.24074612,91345.0,91344.0,0.00166082]
[1764707021662,0.02179599,91345.0,91344.0,0.00166082]
[1764707022446,0.24074612,91345.0,91344.0,0.00266082]
[1764707022587,0.24074612,91345.0,91344.0,0.00466082]
[1764707022806,0.35277911,91345.0,91344.0,0.00266082]
[1764707023624,0.35277911,91345.0,91344.0,0.00166082]
[1764707023849,0.35477911,91345.0,91344.0,0.00166082]
[1764707024050,0.35277911,91345.0,91344.0,0.00166082]
[1764707024489,0.35477911,91345.0,91344.0,0.00166082]
[1764707024858,0.13582898,91345.0,91344.0,0.00166082]
[1764707025058,0.35477911,91345.0,91344.0,0.00166082]
[1764707028948,0.67777911,91345.0,91344.0,0.00166082]
[1764707030786,0.67777911,91345.0,91280.0,0.63817177]
[1764707030787,0.24084204,91305.0,91302.0,0.04824]
[1764707031008,0.24084204,91305.0,91300.0,0.04824]
[1764707031009,0.21904605,91305.0,91300.0,0.04824]
[1764707031239,0.24084204,91305.0,91300.0,0.04824]
[1764707031568,0.24084204,91305.0,91301.0,0.01095278]
[1764707031569,0.02179599,91305.0,91301.0,0.01095278]
[1764707031756,0.24084204,91305.0,91300.0,0.04824]
[1764707031985,0.02279599,91305.0,91302.0,0.01095266]
[1764707032186,0.02279599,91305.0,91302.0,0.23000428]
[1764707032187,0.02779599,91305.0,91302.0,0.23000428]
[1764707032394,0.02779599,91305.0,91304.0,0.23537285]
[1764707032605,0.02779599,91305.0,91304.0,0.0163244]
[1764707033017,0.02779599,91305.0,91304.0,0.23537285]
[1764707033434,0.006,91305.0,91304.0,0.39727285]
[1764707034683,0.22504605,91305.0,91304.0,0.0783344]
[1764707034891,0.24684204,91305.0,91304.0,0.0783344]
[1764707035072,0.24684204,91305.0,91304.0,0.0163244]
[1764707035715,0.0109529,91300.0,91290.0,0.0109541]
[1764707035943,0.0109529,91300.0,91298.0,0.0163244]
[1764707036162,0.02179599,91301.0,91298.0,0.0163244]
[1764707036373,0.06252299,91304.0,91302.0,0.21905236]
[1764707036837,0.06252299,91304.0,91302.0,0.21905273]
[1764707037657,0.005,91305.0,91304.0,0.21904845]
[1764707037870,0.31430557,91310.0,91304.0,0.21904845]
[1764707038113,0.06252299,91309.0,91304.0,0.01095242]
[1764707038325,0.06252299,91309.0,91306.0,0.01095218]
[1764707038532,0.06252299,91307.0,91306.0,0.22999562]
[1764707038737,0.06252299,91307.0,91306.0,0.01095218]
[1764707038939,0.06252299,91308.0,91304.0,0.002]
[1764707039214,0.02179599,91305.0,91302.0,0.01095266]
[1764707039434,0.02179599,91305.0,91304.0,0.01095242]
[1764707039628,0.02179599,91305.0,91304.0,0.23200087]
[1764707039867,0.02179599,91306.0,91305.0,0.0109523]
[1764707040098,0.02179599,91306.0,91305.0,0.22999835]
[1764707040324,0.06252299,91310.0,91299.0,0.01095302]
[1764707040534,0.02179599,91305.0,91304.0,0.21904845]
[1764707041609,0.0285111,91315.0,91304.0,0.21904845]
[1764707041610,0.04025,91321.0,91314.0,0.01095122]
[1764707041837,0.06252299,91315.0,91312.0,0.04824]
[1764707042055,0.08990074,91315.0,91313.0,0.0163244]
[1764707042312,0.30334395,91314.0,91313.0,0.0163244]
[1764707042931,0.01095278,91301.0,91298.0,0.0163244]
[1764707043139,0.24085643,91299.0,91298.0,0.0163244]
[1764707044218,0.24085643,91299.0,91298.0,0.0173244]
[1764707044660,0.02179599,91296.0,91295.0,0.0109535]
[1764707045040,0.02179599,91296.0,91295.0,0.23002354]
[1764707045241,0.02179599,91296.0,91295.0,0.29203354]
[1764707045657,0.02179599,91296.0,91295.0,0.39192354]
[1764707046004,0.06252299,91305.0,91302.0,0.01095266]
[1764707046345,0.06252299,91305.0,91304.0,0.0163244]
[1764707046584,0.31431387,91307.0,91304.0,0.29565285]
[1764707046783,0.31431387,91307.0,91304.0,0.0766044]
[1764707046784,0.08431898,91307.0,91304.0,0.0766044]
[1764707046962,0.06252299,91305.0,91304.0,0.0766044]
[1764707047365,0.28156904,91305.0,91304.0,0.0766044]
[1764707047682,0.06252299,91305.0,91304.0,0.0766044]
[1764707047878,0.06252299,91305.0,91304.0,0.0777768]
[1764707048088,0.28156904,91305.0,91304.0,0.0777768]
[1764707048298,0.35335503,91305.0,91304.0,0.0011724]
[1764707048720,0.35335503,91305.0,91304.0,0.0041724]
[1764707050330,0.37042503,91305.0,91304.0,0.0041724]
[1764707050534,0.37091503,91305.0,91304.0,0.0041724]
[1764707050955,0.37091503,91305.0,91304.0,0.00428867]
[1764707051420,0.37042503,91305.0,91304.0,0.00428867]
[1764707051626,0.35286503,91305.0,91304.0,0.00428867]
[1764707051824,0.37042503,91305.0,91304.0,0.00428867]
[1764707052682,0.32092503,91305.0,91304.0,0.00428867]
[1764707053079,0.10187898,91305.0,91304.0,0.00428867]
[1764707053281,0.32092503,91305.0,91304.0,0.00428867]
[1764707054355,0.10187898,91305.0,91304.0,0.00428867]
[1764707054676,0.30336503,91305.0,91304.0,0.00428867]
[1764707054886,0.0109517,91310.0,91307.0,0.01095206]
[1764707054887,0.06252299,91310.0,91307.0,0.01095206]
[1764707055073,0.02179599,91311.0,91307.0,0.01095206]
[1764707055074,0.02179599,91311.0,91309.0,0.10886]
[1764707055287,0.21903405,91310.0,91309.0,0.04858]
[1764707055487,0.28155704,91310.0,91309.0,0.04858]
[1764707055802,0.30336503,91305.0,91304.0,0.00311627]
[1764707056017,0.67537503,91305.0,91304.0,0.00311627]
[1764707056229,0.67635503,91305.0,91304.0,0.00311627]
[1764707057381,0.67635503,91305.0,91304.0,0.00011627]
[1764707058399,0.67635503,91305.0,91304.0,0.00311627]
[1764707060997,0.69944769,91305.0,91304.0,0.00311627]
[1764707061394,0.67635503,91305.0,91304.0,0.00428867]
[1764707062165,0.67537503,91305.0,91304.0,0.00428867]
[1764707062395,0.67635503,91305.0,91304.0,0.00428867]
[1764707063168,0.67537503,91305.0,91304.0,0.00428867]
[1764707063338,0.69293503,91305.0,91304.0,0.00428867]
[1764707064365,0.67537503,91305.0,91304.0,0.00428867]
[1764707064728,0.69293503,91305.0,91304.0,0.00428867]
[1764707065128,0.67635503,91305.0,91304.0,0.00428867]
[1764707065334,0.69391503,91305.0,91304.0,0.00428867]
[1764707065733,0.69293503,91305.0,91304.0,0.00428867]
[1764707065977,0.67635503,91305.0,91304.0,0.00428867]
[1764707066530,0.69391503,91305.0,91304.0,0.00428867]
[1764707069249,0.71702732,91305.0,91304.0,0.00428867]
[1764707069473,0.71702732,91305.0,91304.0,1e-08]
[1764707069474,0.74817167,91305.0,91304.0,1e-08]
[1764707069672,0.30342262,91281.0,91280.0,0.0002]
[1764707069877,0.38734262,91281.0,91280.0,0.0002]
[1764707070303,0.38734262,91281.0,91280.0,0.00090378]
[1764707071040,0.08431898,91281.0,91280.0,0.00190378]
[1764707071244,0.08431898,91281.0,91280.0,0.22100982]
[1764707071853,0.08431898,91281.0,91280.0,0.00190378]
[1764707073577,0.06252299,91281.0,91280.0,0.00190378]
[1764707073811,0.08431898,91281.0,91280.0,0.00190378]
[1764707074019,0.08480898,91281.0,91280.0,0.00190378]
[1764707074398,0.08431898,91281.0,91280.0,0.00190378]
[1764707074805,0.01668,91300.0,91287.0,0.01095446]
[1764707075051,0.21906546,91297.0,91295.0,0.06028]
[1764707075459,0.219075,91293.0,91291.0,0.04858]
[1764707075879,0.219075,91293.0,91287.0,0.21908924]
[1764707075880,0.02179599,91289.0,91287.0,0.21908924]
[1764707076276,0.02179599,91289.0,91288.0,0.06333]
[1764707076706,0.02179599,91289.0,91288.0,0.28241684]
[1764707076926,0.02179599,91281.0,91273.0,0.01095614]
[1764707077086,0.24089963,91281.0,91275.0,0.0109559]
[1764707077303,0.02179599,91281.0,91279.0,0.21910806]
[1764707077684,0.24089963,91281.0,91276.0,0.23006973]
[1764707077858,0.24089963,91281.0,91280.0,0.01687144]
[1764707078086,0.28262663,91281.0,91280.0,0.0032]
[1764707078887,0.28262663,91281.0,91280.0,0.0042]
[1764707080536,0.06352299,91281.0,91280.0,0.0042]
[1764707080749,0.31001458,91281.0,91280.0,0.0042]
[1764707080997,0.28262663,91281.0,91280.0,0.00490378]
[1764707081396,0.06352299,91281.0,91280.0,0.00490378]
[1764707081645,0.09091094,91281.0,91280.0,0.00490378]
[1764707081802,0.31001458,91281.0,91280.0,0.00490378]
[1764707082008,0.28262663,91281.0,91280.0,0.00490378]
[1764707082677,0.06352299,91281.0,91280.0,0.00490378]
[1764707082876,0.31001458,91281.0,91280.0,0.00490378]
[1764707083077,0.28262663,91281.0,91280.0,0.00490378]
[1764707083291,0.28262663,91281.0,91280.0,0.02157522]
[1764707083486,0.28262663,91281.0,91280.0,0.00490378]
[1764707085860,0.06352299,91281.0,91280.0,0.00490378]
[1764707086064,0.08531898,91281.0,91280.0,0.28451982]
[1764707086271,0.001,91281.0,91280.0,0.37648982]
[1764707089840,0.001,91281.0,91280.0,0.37660618]
[1764707090851,0.001,91281.0,91280.0,0.69960618]
[1764707091315,0.001,91281.0,91280.0,0.69860618]
[1764707091537,0.002,91281.0,91280.0,0.69860618]
[1764707092589,0.001,91281.0,91280.0,0.69560618]
[1764707092900,0.006,91281.0,91280.0,0.69660618]
[1764707094755,0.01095098,91316.0,91309.0,0.01095182]
[1764707094972,0.06252299,91315.0,91312.0,0.01095146]
[1764707095184,0.06252299,91315.0,91311.0,0.04802]
[1764707095185,0.21902598,91314.0,91311.0,0.04802]
[1764707095400,0.21902926,91312.0,91311.0,0.04802]
[1764707096981,0.24595793,91312.0,91311.0,0.04802]
[1764707097988,0.21905085,91303.0,91302.0,0.02191048]
[1764707098218,0.21904845,91304.0,91302.0,0.02191048]
[1764707098516,0.0109523,91305.0,91302.0,0.02191048]
[1764707098716,0.02179599,91303.0,91302.0,0.02191048]
[1764707098912,0.24084684,91303.0,91302.0,0.02191048]
[1764707099345,0.24084684,91303.0,91302.0,0.40839418]
[1764707099346,0.02179599,91303.0,91302.0,0.40839418]
[1764707099555,0.22999567,91307.0,91304.0,0.01095242]
[1764707099777,0.02738045,91306.0,91304.0,0.01095242]
[1764707099986,0.02738045,91306.0,91305.0,0.21904605]
[1764707100192,0.02738015,91307.0,91306.0,0.21904365]
[1764707100409,0.06252299,91310.0,91308.0,0.01095194]
[1764707100837,0.01095086,91317.0,91304.0,0.01195242]
[1764707100838,0.02179599,91315.0,91304.0,0.001]
[1764707101061,0.32847986,91330.0,91306.0,0.01095218]
[1764707101062,0.02179599,91311.0,91306.0,0.01095218]
[1764707101275,0.06252299,91315.0,91314.0,0.04802]
[1764707101728,0.01095002,91324.0,91320.0,0.2299584]
[1764707101940,0.29247175,91325.0,91324.0,0.04802]
[1764707102620,0.29247175,91325.0,91324.0,0.10853]
[1764707102828,0.27273908,91325.0,91324.0,0.10853]
[1764707103108,0.28368898,91325.0,91324.0,0.10953]
[1764707103262,0.28368898,91325.0,91324.0,0.2015]
[1764707103465,0.28368898,91325.0,91324.0,0.10953]
[1764707103846,0.28368898,91325.0,91324.0,0.04902]
[1764707104055,0.01094894,91333.0,91327.0,0.21899328]
[1764707104262,0.22991336,91339.0,91333.0,0.2794889]
[1764707104469,0.22991336,91339.0,91337.0,0.02191048]
[1764707104470,0.2189671,91338.0,91337.0,0.02191048]
[1764707104673,0.28149009,91338.0,91337.0,0.02191048]
[1764707104848,0.2814923,91337.0,91336.0,0.04802]
[1764707105206,0.02179599,91342.0,91340.0,0.21896156]
[1764707105419,0.02179599,91342.0,91339.0,0.22991257]
[1764707105630,0.0109481,91340.0,91337.0,0.08342048]
[1764707105830,0.21896568,91339.0,91337.0,0.33188921]
[1764707106067,0.06252299,91340.0,91339.0,0.06544]
[1764707106316,0.43777732,91371.0,91337.0,0.02191048]
[1764707106317,0.03173,91341.0,91337.0,0.02191048]
[1764707106510,0.03173,91341.0,91331.0,0.01752]
[1764707106511,0.2189741,91335.0,91334.0,0.04653]
[1764707106718,0.21899088,91328.0,91327.0,0.09101]
[1764707106929,0.21899808,91325.0,91324.0,0.04802]
[1764707107118,0.25731944,91327.0,91324.0,0.04802]
[1764707107267,0.01094894,91333.0,91325.0,0.09101]
[1764707107463,0.2189897,91329.0,91327.0,0.06544]
[1764707107676,0.24636291,91329.0,91327.0,0.06544]
[1764707107895,0.21899573,91326.0,91324.0,0.04802]
[1764707108317,0.21899573,91326.0,91325.0,0.06544]
[1764707108523,0.02179599,91331.0,91325.0,0.15645]
[1764707108724,0.08431898,91331.0,91330.0,0.06544]
[1764707108936,0.06252299,91331.0,91330.0,0.06544]
[1764707109150,0.06252299,91331.0,91330.0,0.15645]
[1764707110044,0.06252299,91331.0,91330.0,0.15845]
[1764707111103,0.06252299,91331.0,91330.0,0.15945]
[1764707112313,0.28150668,91331.0,91330.0,0.15945]
[1764707112567,0.06252299,91331.0,91330.0,0.15945]
[1764707112758,0.06252299,91331.0,91330.0,0.37843609]
[1764707113637,0.06252299,91338.0,91334.0,0.2299231]
[1764707113768,0.06252299,91338.0,91336.0,0.21897057]
[1764707113967,0.00166143,91345.0,91344.0,0.21895253]
[1764707114168,0.00166143,91345.0,91344.0,0.06544]
[1764707114399,0.00166143,91345.0,91344.0,0.28439253]
[1764707114961,0.06418442,91345.0,91344.0,0.28439253]
[1764707115157,0.00166143,91345.0,91344.0,0.28439253]
[1764707115383,0.00166143,91345.0,91344.0,0.06544]
[1764707115578,0.00166143,91345.0,91344.0,0.37740253]
[1764707115862,0.00177764,91345.0,91344.0,0.37740253]
[1764707116521,0.00177764,91345.0,91344.0,0.28639253]
[1764707116750,0.00177764,91345.0,91344.0,0.08639253]
[1764707116960,0.00177764,91345.0,91344.0,0.24284253]
[1764707117930,0.00177764,91345.0,91344.0,0.24084253]
[1764707118127,0.00277764,91345.0,91344.0,0.24084253]
[1764707118367,0.00777764,91345.0,91344.0,0.24084253]
[1764707118656,0.00177764,91345.0,91344.0,0.24084253]
[1764707118906,0.00477764,91345.0,91344.0,0.24084253]
[1764707119079,0.00177764,91345.0,91344.0,0.24084253]
[1764707119436,0.00299764,91345.0,91344.0,0.56384253]
[1764707119871,0.00399764,91345.0,91344.0,0.56384253]
[1764707120579,0.0004,91400.0,91388.0,0.01094235]
[1764707120787,0.0004,91400.0,91399.0,0.02191048]
[1764707120788,0.03908115,91400.0,91399.0,0.02191048]
[1764707120981,0.09066323,91400.0,91399.0,0.02191048]
[1764707121239,0.02814024,91400.0,91399.0,0.02191048]
[1764707121440,0.00078795,91400.0,91399.0,0.08735048]
[1764707121601,0.00239816,91400.0,91399.0,0.02191048]
[1764707121810,0.02975045,91400.0,91399.0,0.02191048]
[1764707122832,0.00239816,91400.0,91399.0,0.08735048]
[1764707123855,0.00239816,91400.0,91399.0,0.08835048]
[1764707124754,0.00239816,91400.0,91399.0,0.001]
[1764707124936,0.05154644,91400.0,91399.0,0.001]
[1764707125151,0.05154644,91400.0,91399.0,0.002]
[1764707128368,0.00239816,91400.0,91399.0,0.15845]
[1764707129802,0.00239816,91400.0,91399.0,0.17497]
[1764707130342,0.00239816,91400.0,91399.0,0.17697]
[1764707130553,0.00239816,91400.0,91399.0,0.17597]
[1764707131472,0.00239816,91400.0,91399.0,0.17397]
[1764707131679,0.00339816,91400.0,91399.0,0.17397]
[1764707131866,0.00439816,91400.0,91399.0,0.17397]
[1764707132050,0.00439816,91400.0,91399.0,0.08296]
[1764707132406,0.00439816,91400.0,91399.0,0.17397]
[1764707132611,0.00339816,91400.0,91399.0,0.17397]
[1764707132809,0.00739816,91400.0,91399.0,0.39279077]
[1764707133034,0.00739816,91400.0,91399.0,0.17397]
[1764707133243,0.00739816,91400.0,91399.0,0.39279077]
[1764707138173,0.00739816,91400.0,91399.0,0.37527077]
[1764707138349,0.00739816,91400.0,91399.0,0.40049077]
[1764707138548,0.00739816,91400.0,91399.0,0.18167]
[1764707138753,0.00739816,91400.0,91399.0,0.40049077]
[1764707141802,0.00739816,91400.0,91395.0,0.01094151]
[1764707142039,0.00578795,91400.0,91397.0,0.22976529]
[1764707142240,0.00578795,91400.0,91399.0,0.21882077]
[1764707142462,0.00155169,91398.0,91397.0,0.22976683]
[1764707142884,0.00155169,91398.0,91395.0,0.01094151]
[1764707143102,0.22977388,91395.0,91391.0,0.22978191]
[1764707143345,0.01094163,91394.0,91391.0,0.01094199]
[1764707143559,0.22977388,91395.0,91392.0,0.21883703]
[1764707144219,0.22977388,91395.0,91392.0,0.2297789]
[1764707144436,0.00178795,91400.0,91396.0,0.01094139]
[1764707144437,0.00078795,91400.0,91396.0,0.01094139]
[1764707144862,0.01172886,91400.0,91396.0,0.01094139]
[1764707145064,0.01172886,91400.0,91396.0,0.22976475]
[1764707145065,0.02179599,91397.0,91396.0,0.22976475]
[1764707146838,0.02179599,91397.0,91395.0,0.21882979]
[1764707147046,0.02179599,91397.0,91391.0,0.01094199]
[1764707147047,0.22977145,91396.0,91391.0,0.01094199]
[1764707147270,0.22977145,91396.0,91378.0,0.09871]
[1764707147271,0.21885009,91387.0,91378.0,0.09871]
[1764707147481,0.21885009,91387.0,91380.0,0.01094331]
[1764707147482,0.21885184,91387.0,91380.0,0.01094331]
[1764707147651,0.02179599,91381.0,91378.0,0.01094355]
[1764707147852,0.02179599,91381.0,91377.0,0.25138323]
[1764707148055,0.21886866,91379.0,91377.0,0.03251]
[1764707148282,0.01094331,91380.0,91371.0,0.02191048]
[1764707148283,0.22981712,91377.0,91371.0,0.02191048]
[1764707148599,0.03273954,91378.0,91375.0,0.01094391]
[1764707148793,0.25161096,91378.0,91375.0,0.22982181]
[1764707148994,0.00090781,91376.0,91375.0,0.22982181]
[1764707149350,0.00090781,91376.0,91375.0,0.01094391]
[1764707149823,0.00090781,91376.0,91372.0,0.22982922]
[1764707150028,0.22981779,91377.0,91373.0,0.22982509]
[1764707150214,0.001,91376.0,91373.0,0.22982509]
[1764707150519,0.001,91376.0,91375.0,0.21887824]
[1764707150656,0.001,91376.0,91375.0,0.27913824]
[1764707150857,0.005,91376.0,91375.0,0.37784824]
[1764707151081,0.001,91376.0,91375.0,0.37784824]
[1764707151296,0.06252299,91387.0,91385.0,0.21885382]
[1764707151509,0.28137282,91387.0,91385.0,0.21885382]
[1764707151698,0.29231529,91387.0,91384.0,0.2297991]
[1764707151916,0.28137524,91386.0,91385.0,0.02191048]
[1764707153392,0.28137524,91386.0,91385.0,0.02291048]
[1764707153740,0.28137524,91386.0,91385.0,0.02491048]
[1764707156861,0.21885225,91386.0,91385.0,0.02491048]
[1764707157305,0.22005278,91386.0,91385.0,0.02491048]
[1764707157507,0.22005278,91386.0,91385.0,0.04158192]
[1764707157657,0.22005278,91386.0,91385.0,0.02491048]
[1764707157863,0.00120053,91386.0,91385.0,0.02491048]
[1764707158068,0.00120053,91386.0,91385.0,0.24376477]
[1764707160149,0.00120053,91386.0,91385.0,0.02491048]
[1764707160363,0.22005243,91386.0,91385.0,0.02491048]
[1764707160776,0.00120053,91386.0,91385.0,0.24376477]
[1764707161307,0.00120053,91386.0,91385.0,0.40273477]
[1764707163493,0.00078795,91400.0,91399.0,0.21882077]
[1764707163683,0.00078795,91400.0,91399.0,0.44487077]
[1764707164058,0.00078795,91400.0,91399.0,0.46678125]
[1764707164647,0.0004,91420.0,91419.0,0.2187729]
[1764707164852,0.00048492,91420.0,91419.0,0.4062429]
[1764707165275,0.00048492,91420.0,91419.0,0.42815338]
[1764707166474,0.00048492,91420.0,91419.0,0.42915338]
[1764707171602,0.00048492,91420.0,91419.0,0.44663338]
[1764707172025,0.00147988,91420.0,91419.0,0.44663338]
[1764707172432,0.00147988,91420.0,91419.0,0.42915338]
[1764707172630,0.00147988,91420.0,91419.0,0.44663338]
[1764707174214,0.00147988,91420.0,91419.0,0.42915338]
[1764707174417,0.00147988,91420.0,91419.0,0.44663338]
[1764707174879,0.00147988,91420.0,91419.0,0.12915048]
[1764707175087,0.00147988,91420.0,91419.0,0.05141048]
[1764707175290,0.00147988,91420.0,91419.0,0.001]
[1764707178312,0.00147988,91420.0,91419.0,0.15835]
[1764707178687,0.00147988,91420.0,91419.0,0.001]
[1764707178891,0.02327587,91420.0,91419.0,0.001]
[1764707180106,0.00147988,91420.0,91419.0,0.001]
[1764707180308,0.08052587,91420.0,91419.0,0.001]
[1764707180526,0.14304886,91420.0,91419.0,0.001]
[1764707180720,0.50283886,91420.0,91419.0,0.001]